[Event "Titled Tuesday Blitz August 08 Late 2023"]
[White "Kozusek, Daniel"]
[Black "Pakleza, Zbigniew"]
[WhiteFideId "349500"]
[BlackFideId "1119290"]
[WhiteElo "2548"]
[BlackElo "2818"]
[Result "0-1"]
[Round "8"]
[TimeControl "180+1"]
[Date "2023.08.08"]
[WhiteClock "0:00:00"]
[BlackClock "0:00:02"]
[Board "27"]

1. d4 {[%clk 0:03:00]}  d6 {[%clk 0:03:00]} 2. Nf3 {[%clk 0:02:53]}  Bg4 {[%clk 0:03:00]} 3. c4 {[%clk 0:02:53]}  c6 {[%clk 0:03:00]} 4. Nc3 {[%clk 0:02:53]}  Nd7 {[%clk 0:02:57]} 5. g3 {[%clk 0:02:53]}  Bxf3 {[%clk 0:02:57]} 6. exf3 {[%clk 0:02:54]}  e6 {[%clk 0:02:58]} 7. d5 {[%clk 0:02:51]}  exd5 {[%clk 0:02:58]} 8. cxd5 {[%clk 0:02:51]}  c5 {[%clk 0:02:59]} 9. Bg2 {[%clk 0:02:52]}  Be7 {[%clk 0:02:58]} 10. O-O {[%clk 0:02:52]}  Ngf6 {[%clk 0:02:59]} 11. Re1 {[%clk 0:02:51]}  O-O {[%clk 0:02:59]} 12. a4 {[%clk 0:02:44]}  Re8 {[%clk 0:02:53]} 13. Bf4 {[%clk 0:02:39]}  a6 {[%clk 0:02:52]} 14. Ne4 {[%clk 0:02:35]}  Nxe4 {[%clk 0:02:20]} 15. fxe4 {[%clk 0:02:35]}  Qb6 {[%clk 0:02:16]} 16. a5 {[%clk 0:02:32]}  Qc7 {[%clk 0:02:09]} 17. Qa4 {[%clk 0:02:18]}  Bf6 {[%clk 0:02:03]} 18. Rab1 {[%clk 0:02:14]}  Bd4 {[%clk 0:01:53]} 19. b4 {[%clk 0:01:59]}  Ne5 {[%clk 0:01:37]} 20. Bxe5 {[%clk 0:01:08]}  Rxe5 {[%clk 0:01:30]} 21. bxc5 {[%clk 0:01:07]}  Bxc5 {[%clk 0:01:22]} 22. Re2 {[%clk 0:01:02]}  h5 {[%clk 0:00:49]} 23. Reb2 {[%clk 0:01:00]}  Rb8 {[%clk 0:00:50]} 24. Kf1 {[%clk 0:00:48]}  h4 {[%clk 0:00:45]} 25. Rc1 {[%clk 0:00:46]}  Qd8 {[%clk 0:00:36]} 26. Rcb1 {[%clk 0:00:34]}  Qf6 {[%clk 0:00:31]} 27. Qc2 {[%clk 0:00:34]}  hxg3 {[%clk 0:00:23]} 28. hxg3 {[%clk 0:00:35]}  Re7 {[%clk 0:00:21]} 29. Qe2 {[%clk 0:00:28]}  g6 {[%clk 0:00:19]} 30. Qf3 {[%clk 0:00:24]}  Qd4 {[%clk 0:00:18]} 31. Rc2 {[%clk 0:00:19]}  Kg7 {[%clk 0:00:15]} 32. Qc3 {[%clk 0:00:19]}  Qxc3 {[%clk 0:00:09]} 33. Rxc3 {[%clk 0:00:20]}  f5 {[%clk 0:00:09]} 34. exf5 {[%clk 0:00:15]}  gxf5 {[%clk 0:00:10]} 35. Rf3 {[%clk 0:00:15]}  Kg6 {[%clk 0:00:07]} 36. Bh3 {[%clk 0:00:16]}  Re5 {[%clk 0:00:07]} 37. Rd1 {[%clk 0:00:09]}  Bb4 {[%clk 0:00:07]} 38. Rb3 {[%clk 0:00:03]}  Bxa5 {[%clk 0:00:06]} 39. Rdb1 {[%clk 0:00:04]}  Re7 {[%clk 0:00:04]} 40. Rf3 {[%clk 0:00:03]}  Rf7 {[%clk 0:00:04]} 41. Rfb3 {[%clk 0:00:02]}  Kf6 {[%clk 0:00:03]} 42. Kg2 {[%clk 0:00:02]}  Bd8 {[%clk 0:00:01]} 43. Rd1 {[%clk 0:00:03]}  b5 {[%clk 0:00:02]} 44. Rf3 {[%clk 0:00:04]}  Kg6 {[%clk 0:00:01]} 45. Re1 {[%clk 0:00:04]}  Bg5 {[%clk 0:00:01]} 46. Re6+ {[%clk 0:00:05]}  Rf6 {[%clk 0:00:02]} 47. Bxf5+ {[%clk 0:00:05]}  Kg7 {[%clk 0:00:02]} 48. Re7+ {[%clk 0:00:05]}  Kf8 {[%clk 0:00:03]} 49. Ra7 {[%clk 0:00:05]}  b4 {[%clk 0:00:02]} 50. Rxa6 {[%clk 0:00:03]}  b3 {[%clk 0:00:03]} 51. Bb1 {[%clk 0:00:04]}  Rxf3 {[%clk 0:00:02]} 52. Kxf3 {[%clk 0:00:05]}  Bf6 {[%clk 0:00:01]} 53. Rxd6 {[%clk 0:00:04]}  Bd4 {[%clk 0:00:01]} 54. Ke2 {[%clk 0:00:03]}  Ke7 {[%clk 0:00:01]} 55. Re6+ {[%clk 0:00:03]}  Kd7 {[%clk 0:00:02]} 56. f4 {[%clk 0:00:04]}  Ra8 {[%clk 0:00:02]} 57. Kd3 {[%clk 0:00:04]}  Ra1 {[%clk 0:00:02]} 58. Kxd4 {[%clk 0:00:04]}  Rxb1 {[%clk 0:00:02]} 59. Re3 {[%clk 0:00:00]}  b2 {[%clk 0:00:02]} 0-1


[Site "https://www.chess.com"]

[Event "Titled Tuesday Blitz August 08 Late 2023"]
[White "Bauman_Guy"]
[Black "Willy, Stephen"]
[BlackFideId "30981468"]
[WhiteElo "2803"]
[BlackElo "2543"]
[Result "1/2-1/2"]
[Round "8"]
[TimeControl "180+1"]
[Date "2023.08.08"]
[WhiteClock "0:00:10"]
[BlackClock "0:00:15"]
[Board "28"]

1. e4 {[%clk 0:03:00]}  d5 {[%clk 0:02:53]} 2. exd5 {[%clk 0:03:00]}  Qxd5 {[%clk 0:02:53]} 3. Nc3 {[%clk 0:03:00]}  Qd6 {[%clk 0:02:54]} 4. d4 {[%clk 0:03:00]}  Nf6 {[%clk 0:02:55]} 5. Nf3 {[%clk 0:03:00]}  a6 {[%clk 0:02:54]} 6. g3 {[%clk 0:03:00]}  Nc6 {[%clk 0:02:52]} 7. Bg2 {[%clk 0:02:57]}  Bg4 {[%clk 0:02:49]} 8. h3 {[%clk 0:02:56]}  Bxf3 {[%clk 0:02:44]} 9. Qxf3 {[%clk 0:02:55]}  Nxd4 {[%clk 0:02:40]} 10. Qxb7 {[%clk 0:02:49]}  Nxc2+ {[%clk 0:02:39]} 11. Kf1 {[%clk 0:02:49]}  Rd8 {[%clk 0:02:32]} 12. Rb1 {[%clk 0:02:36]}  g6 {[%clk 0:02:25]} 13. Bc6+ {[%clk 0:02:33]}  Nd7 {[%clk 0:02:25]} 14. Bf4 {[%clk 0:02:33]}  Qb4 {[%clk 0:02:19]} 15. Qxa6 {[%clk 0:01:59]}  Nd4 {[%clk 0:02:14]} 16. Rd1 {[%clk 0:01:57]}  Nxc6 {[%clk 0:02:09]} 17. Qxc6 {[%clk 0:01:57]}  Qb6 {[%clk 0:01:39]} 18. Qa4 {[%clk 0:01:56]}  e6 {[%clk 0:01:37]} 19. Nb5 {[%clk 0:01:49]}  Rc8 {[%clk 0:01:31]} 20. Rxd7 {[%clk 0:01:22]}  Qc6 {[%clk 0:01:14]} 21. Nxc7+ {[%clk 0:00:44]}  Kxd7 {[%clk 0:01:13]} 22. Qxc6+ {[%clk 0:00:34]}  Kxc6 {[%clk 0:01:13]} 23. Ke2 {[%clk 0:00:32]}  Bd6 {[%clk 0:01:08]} 24. Rc1+ {[%clk 0:00:31]}  Kd7 {[%clk 0:01:07]} 25. Rd1 {[%clk 0:00:30]}  Kxc7 {[%clk 0:01:01]} 26. Rxd6 {[%clk 0:00:29]}  g5 {[%clk 0:00:44]} 27. Be5 {[%clk 0:00:17]}  f6 {[%clk 0:00:44]} 28. Rxe6+ {[%clk 0:00:12]}  fxe5 {[%clk 0:00:44]} 29. Rxe5 {[%clk 0:00:12]}  Rhe8 {[%clk 0:00:44]} 30. Rxe8 {[%clk 0:00:13]}  Rxe8+ {[%clk 0:00:45]} 31. Kf3 {[%clk 0:00:13]}  h6 {[%clk 0:00:41]} 32. b4 {[%clk 0:00:13]}  Kc6 {[%clk 0:00:41]} 33. Kg4 {[%clk 0:00:12]}  Re2 {[%clk 0:00:39]} 34. Kh5 {[%clk 0:00:12]}  Rxf2 {[%clk 0:00:39]} 35. Kxh6 {[%clk 0:00:12]}  Rf3 {[%clk 0:00:37]} 36. g4 {[%clk 0:00:11]}  Rxh3+ {[%clk 0:00:35]} 37. Kxg5 {[%clk 0:00:11]}  Kb5 {[%clk 0:00:36]} 38. Kf6 {[%clk 0:00:11]}  Rf3+ {[%clk 0:00:34]} 39. Ke5 {[%clk 0:00:10]}  Kxb4 {[%clk 0:00:32]} 40. g5 {[%clk 0:00:10]}  Kc5 {[%clk 0:00:29]} 41. g6 {[%clk 0:00:10]}  Re3+ {[%clk 0:00:21]} 42. Kf6 {[%clk 0:00:09]}  Kd6 {[%clk 0:00:18]} 43. g7 {[%clk 0:00:09]}  Rf3+ {[%clk 0:00:19]} 44. Kg6 {[%clk 0:00:09]}  Rg3+ {[%clk 0:00:19]} 45. Kf7 {[%clk 0:00:10]}  Rf3+ {[%clk 0:00:19]} 46. Ke8 {[%clk 0:00:10]}  Re3+ {[%clk 0:00:19]} 47. Kf7 {[%clk 0:00:10]}  Rf3+ {[%clk 0:00:19]} 48. Ke8 {[%clk 0:00:10]}  Rg3 {[%clk 0:00:14]} 49. Kf7 {[%clk 0:00:10]}  Rf3+ {[%clk 0:00:15]} 1/2-1/2


[Site "https://www.chess.com"]

[Event "Titled Tuesday Blitz August 08 Late 2023"]
[White "Zeman, Matyas"]
[Black "Fier, Alexandr"]
[WhiteFideId "364398"]
[BlackFideId "2107139"]
[WhiteElo "2519"]
[BlackElo "2783"]
[Result "0-1"]
[Round "8"]
[TimeControl "180+1"]
[Date "2023.08.08"]
[WhiteClock "0:00:04"]
[BlackClock "0:01:01"]
[Board "29"]

1. d4 {[%clk 0:03:00]}  Nf6 {[%clk 0:03:00]} 2. Nf3 {[%clk 0:02:57]}  e6 {[%clk 0:03:00]} 3. Bf4 {[%clk 0:02:56]}  c5 {[%clk 0:03:01]} 4. e3 {[%clk 0:02:56]}  Qb6 {[%clk 0:03:00]} 5. Qc1 {[%clk 0:02:24]}  Nc6 {[%clk 0:02:59]} 6. c3 {[%clk 0:02:23]}  d5 {[%clk 0:02:59]} 7. Nbd2 {[%clk 0:02:22]}  Bd7 {[%clk 0:02:59]} 8. Rb1 {[%clk 0:02:16]}  Rc8 {[%clk 0:03:00]} 9. Qd1 {[%clk 0:02:14]}  Be7 {[%clk 0:03:00]} 10. Bd3 {[%clk 0:02:14]}  Nh5 {[%clk 0:02:59]} 11. Bg5 {[%clk 0:02:09]}  f6 {[%clk 0:02:59]} 12. Bh4 {[%clk 0:02:07]}  g6 {[%clk 0:02:59]} 13. O-O {[%clk 0:02:04]}  O-O {[%clk 0:02:55]} 14. dxc5 {[%clk 0:01:47]}  Qxc5 {[%clk 0:02:54]} 15. Bg3 {[%clk 0:01:34]}  Nxg3 {[%clk 0:02:53]} 16. hxg3 {[%clk 0:01:35]}  e5 {[%clk 0:02:53]} 17. e4 {[%clk 0:01:35]}  Be6 {[%clk 0:02:50]} 18. exd5 {[%clk 0:01:26]}  Bxd5 {[%clk 0:02:49]} 19. Qe2 {[%clk 0:01:25]}  Be6 {[%clk 0:02:47]} 20. Bc4 {[%clk 0:01:07]}  Bxc4 {[%clk 0:02:45]} 21. Nxc4 {[%clk 0:01:08]}  Qb5 {[%clk 0:02:40]} 22. Rfe1 {[%clk 0:01:02]}  Rfd8 {[%clk 0:02:41]} 23. g4 {[%clk 0:00:58]}  g5 {[%clk 0:02:04]} 24. Ne3 {[%clk 0:00:56]}  Qxe2 {[%clk 0:02:04]} 25. Rxe2 {[%clk 0:00:57]}  Kf7 {[%clk 0:02:04]} 26. Nf5 {[%clk 0:00:57]}  Bc5 {[%clk 0:02:04]} 27. Nd2 {[%clk 0:00:56]}  Ne7 {[%clk 0:02:02]} 28. Nxe7 {[%clk 0:00:53]}  Bxe7 {[%clk 0:02:02]} 29. Ne4 {[%clk 0:00:54]}  b5 {[%clk 0:02:02]} 30. b3 {[%clk 0:00:42]}  Ke6 {[%clk 0:01:57]} 31. Ree1 {[%clk 0:00:39]}  h5 {[%clk 0:01:55]} 32. f3 {[%clk 0:00:36]}  hxg4 {[%clk 0:01:54]} 33. fxg4 {[%clk 0:00:37]}  Rd3 {[%clk 0:01:51]} 34. Rbd1 {[%clk 0:00:35]}  Rcd8 {[%clk 0:01:49]} 35. Rxd3 {[%clk 0:00:35]}  Rxd3 {[%clk 0:01:50]} 36. Kf2 {[%clk 0:00:34]}  f5 {[%clk 0:01:48]} 37. gxf5+ {[%clk 0:00:31]}  Kxf5 {[%clk 0:01:49]} 38. Ng3+ {[%clk 0:00:25]}  Ke6 {[%clk 0:01:50]} 39. Ne4 {[%clk 0:00:25]}  g4 {[%clk 0:01:50]} 40. Ke2 {[%clk 0:00:24]}  Rd8 {[%clk 0:01:50]} 41. Rf1 {[%clk 0:00:18]}  a5 {[%clk 0:01:43]} 42. Rh1 {[%clk 0:00:15]}  a4 {[%clk 0:01:43]} 43. b4 {[%clk 0:00:13]}  Kd5 {[%clk 0:01:40]} 44. Kd3 {[%clk 0:00:13]}  Ke6+ {[%clk 0:01:38]} 45. Ke3 {[%clk 0:00:11]}  Bf8 {[%clk 0:01:34]} 46. Rh7 {[%clk 0:00:06]}  Rd1 {[%clk 0:01:34]} 47. Ng5+ {[%clk 0:00:04]}  Kf5 {[%clk 0:01:29]} 48. Rf7+ {[%clk 0:00:03]}  Kxg5 {[%clk 0:01:30]} 49. Rxf8 {[%clk 0:00:04]}  Ra1 {[%clk 0:01:30]} 50. Rf2 {[%clk 0:00:04]}  g3 {[%clk 0:01:29]} 51. Re2 {[%clk 0:00:03]}  Kg4 {[%clk 0:01:27]} 52. Ke4 {[%clk 0:00:03]}  Rc1 {[%clk 0:01:28]} 53. Kd3 {[%clk 0:00:03]}  Kf4 {[%clk 0:01:27]} 54. Re4+ {[%clk 0:00:03]}  Kf5 {[%clk 0:01:27]} 55. Re3 {[%clk 0:00:03]}  Ra1 {[%clk 0:01:26]} 56. Re2 {[%clk 0:00:04]}  a3 {[%clk 0:01:26]} 57. c4 {[%clk 0:00:03]}  e4+ {[%clk 0:01:21]} 58. Kd4 {[%clk 0:00:02]}  Rd1+ {[%clk 0:01:21]} 59. Kc5 {[%clk 0:00:02]}  bxc4 {[%clk 0:01:20]} 60. Kxc4 {[%clk 0:00:03]}  Rb1 {[%clk 0:01:16]} 61. Kc3 {[%clk 0:00:03]}  Kf4 {[%clk 0:01:16]} 62. Rd2 {[%clk 0:00:01]}  Ke3 {[%clk 0:01:01]} 63. Rc2 {[%clk 0:00:02]}  Rb2 {[%clk 0:01:00]} 64. Rxb2 {[%clk 0:00:01]}  axb2 {[%clk 0:01:01]} 65. Kxb2 {[%clk 0:00:02]}  Kd2 {[%clk 0:01:01]} 66. b5 {[%clk 0:00:02]}  e3 {[%clk 0:01:02]} 67. b6 {[%clk 0:00:03]}  e2 {[%clk 0:01:03]} 68. b7 {[%clk 0:00:04]}  e1=Q {[%clk 0:01:04]} 69. b8=Q {[%clk 0:00:04]}  Qf2 {[%clk 0:01:03]} 70. Qd6+ {[%clk 0:00:03]}  Ke1+ {[%clk 0:01:03]} 71. Kb3 {[%clk 0:00:04]}  Qxg2 {[%clk 0:01:03]} 72. Qd3 {[%clk 0:00:04]}  Qf2 {[%clk 0:01:00]} 73. Qb1+ {[%clk 0:00:04]}  Ke2 {[%clk 0:01:00]} 74. Qc2+ {[%clk 0:00:04]}  Kf3 {[%clk 0:01:01]} 75. Qf5+ {[%clk 0:00:04]}  Kg2 {[%clk 0:01:01]} 76. a4 {[%clk 0:00:04]}  Qxf5 {[%clk 0:01:01]} 0-1


[Site "https://www.chess.com"]

[Event "Titled Tuesday Blitz August 08 Late 2023"]
[White "Hristodoulou, Panagiotis"]
[Black "Haydon, David L"]
[WhiteFideId "4214340"]
[BlackFideId "415405"]
[WhiteElo "2507"]
[BlackElo "2782"]
[Result "0-1"]
[Round "8"]
[TimeControl "180+1"]
[Date "2023.08.08"]
[WhiteClock "0:00:00"]
[BlackClock "0:00:51"]
[Board "30"]

1. d4 {[%clk 0:03:00]}  c6 {[%clk 0:03:00]} 2. Nc3 {[%clk 0:02:57]}  d5 {[%clk 0:03:00]} 3. e4 {[%clk 0:02:58]}  dxe4 {[%clk 0:03:00]} 4. Nxe4 {[%clk 0:02:58]}  Bf5 {[%clk 0:03:00]} 5. Ng3 {[%clk 0:02:58]}  Bg6 {[%clk 0:03:00]} 6. Nf3 {[%clk 0:02:58]}  Nd7 {[%clk 0:02:59]} 7. Be2 {[%clk 0:02:57]}  e6 {[%clk 0:02:58]} 8. O-O {[%clk 0:02:57]}  Bd6 {[%clk 0:02:58]} 9. Re1 {[%clk 0:02:54]}  Ngf6 {[%clk 0:02:57]} 10. c4 {[%clk 0:02:52]}  Qc7 {[%clk 0:02:55]} 11. Nh4 {[%clk 0:02:45]}  O-O {[%clk 0:02:51]} 12. Nxg6 {[%clk 0:02:40]}  hxg6 {[%clk 0:02:51]} 13. Bf3 {[%clk 0:02:40]}  c5 {[%clk 0:02:48]} 14. dxc5 {[%clk 0:02:38]}  Bxc5 {[%clk 0:02:45]} 15. Qe2 {[%clk 0:02:26]}  Rad8 {[%clk 0:02:37]} 16. Bd2 {[%clk 0:02:21]}  Nb6 {[%clk 0:02:14]} 17. Rac1 {[%clk 0:02:12]}  Qe7 {[%clk 0:01:58]} 18. a3 {[%clk 0:01:55]}  Qc7 {[%clk 0:01:46]} 19. Red1 {[%clk 0:01:22]}  Na4 {[%clk 0:01:35]} 20. b4 {[%clk 0:01:14]}  Bd4 {[%clk 0:01:34]} 21. Be3 {[%clk 0:01:04]}  Nc3 {[%clk 0:01:33]} 22. Rxc3 {[%clk 0:00:57]}  Bxc3 {[%clk 0:01:32]} 23. Bxa7 {[%clk 0:00:52]}  Rxd1+ {[%clk 0:01:24]} 24. Qxd1 {[%clk 0:00:53]}  b6 {[%clk 0:01:24]} 25. Qa4 {[%clk 0:00:44]}  Bd4 {[%clk 0:01:13]} 26. Qa6 {[%clk 0:00:35]}  Qe5 {[%clk 0:00:59]} 27. Ne2 {[%clk 0:00:27]}  Bc5 {[%clk 0:00:56]} 28. g3 {[%clk 0:00:20]}  Qa1+ {[%clk 0:00:55]} 29. Kg2 {[%clk 0:00:20]}  Bxb4 {[%clk 0:00:56]} 30. Bxb6 {[%clk 0:00:15]}  Qxa3 {[%clk 0:00:55]} 31. Qb7 {[%clk 0:00:13]}  Bc5 {[%clk 0:00:55]} 32. Qc6 {[%clk 0:00:09]}  Bxb6 {[%clk 0:00:54]} 33. Qxb6 {[%clk 0:00:10]}  Rc8 {[%clk 0:00:54]} 34. Qb5 {[%clk 0:00:06]}  Qc5 {[%clk 0:00:53]} 35. Nf4 {[%clk 0:00:04]}  Qxc4 {[%clk 0:00:53]} 36. Qb7 {[%clk 0:00:04]}  g5 {[%clk 0:00:52]} 37. Ne2 {[%clk 0:00:04]}  g4 {[%clk 0:00:51]} 38. Bc6 {[%clk 0:00:00]}  Qxc6+ {[%clk 0:00:51]} 0-1


[Site "https://www.chess.com"]

[Event "Titled Tuesday Blitz August 08 Late 2023"]
[White "Gasparyan, David"]
[Black "Miladinovic, Igor"]
[WhiteFideId "13311980"]
[BlackFideId "4203380"]
[WhiteElo "2595"]
[BlackElo "2768"]
[Result "0-1"]
[Round "8"]
[TimeControl "180+1"]
[Date "2023.08.08"]
[WhiteClock "0:00:00"]
[BlackClock "0:00:52"]
[Board "34"]

1. d4 {[%clk 0:03:00]}  d5 {[%clk 0:02:43]} 2. Bf4 {[%clk 0:02:59]}  c5 {[%clk 0:02:42]} 3. e3 {[%clk 0:02:59]}  Nc6 {[%clk 0:02:41]} 4. Nf3 {[%clk 0:02:59]}  Bg4 {[%clk 0:02:35]} 5. Be2 {[%clk 0:02:59]}  e6 {[%clk 0:02:32]} 6. O-O {[%clk 0:02:58]}  Bxf3 {[%clk 0:02:32]} 7. Bxf3 {[%clk 0:02:57]}  cxd4 {[%clk 0:02:32]} 8. exd4 {[%clk 0:02:58]}  Qb6 {[%clk 0:02:32]} 9. c3 {[%clk 0:02:26]}  Qxb2 {[%clk 0:02:30]} 10. Qb3 {[%clk 0:01:47]}  Qxb3 {[%clk 0:02:27]} 11. axb3 {[%clk 0:01:48]}  Kd7 {[%clk 0:02:27]} 12. Nd2 {[%clk 0:01:44]}  Bd6 {[%clk 0:02:25]} 13. Be3 {[%clk 0:01:43]}  Nge7 {[%clk 0:02:24]} 14. b4 {[%clk 0:01:43]}  Rhc8 {[%clk 0:02:07]} 15. Nb3 {[%clk 0:01:39]}  b6 {[%clk 0:02:06]} 16. Be2 {[%clk 0:01:38]}  a5 {[%clk 0:02:00]} 17. bxa5 {[%clk 0:01:23]}  Nxa5 {[%clk 0:01:59]} 18. Bb5+ {[%clk 0:01:21]}  Kd8 {[%clk 0:01:58]} 19. Nxa5 {[%clk 0:01:19]}  Rxa5 {[%clk 0:01:53]} 20. Rxa5 {[%clk 0:01:19]}  bxa5 {[%clk 0:01:54]} 21. Bd2 {[%clk 0:01:18]}  Rb8 {[%clk 0:01:52]} 22. c4 {[%clk 0:01:09]}  Bb4 {[%clk 0:01:49]} 23. Bf4 {[%clk 0:01:05]}  Rb6 {[%clk 0:01:48]} 24. Rc1 {[%clk 0:00:56]}  dxc4 {[%clk 0:01:47]} 25. Bxc4 {[%clk 0:00:56]}  Rc6 {[%clk 0:01:47]} 26. Rc2 {[%clk 0:00:55]}  Nf5 {[%clk 0:01:45]} 27. Be3 {[%clk 0:00:36]}  a4 {[%clk 0:01:44]} 28. Bd3 {[%clk 0:00:29]}  Rxc2 {[%clk 0:01:43]} 29. Bxc2 {[%clk 0:00:30]}  a3 {[%clk 0:01:44]} 30. Bb3 {[%clk 0:00:24]}  Nd6 {[%clk 0:01:42]} 31. Kf1 {[%clk 0:00:23]}  Ne4 {[%clk 0:01:41]} 32. f3 {[%clk 0:00:15]}  Nc3 {[%clk 0:01:40]} 33. Bd2 {[%clk 0:00:15]}  Nd5 {[%clk 0:01:12]} 34. Bxd5 {[%clk 0:00:11]}  Bxd2 {[%clk 0:01:11]} 35. Bb3 {[%clk 0:00:11]}  Bc3 {[%clk 0:01:10]} 36. d5 {[%clk 0:00:11]}  e5 {[%clk 0:01:10]} 37. Ke2 {[%clk 0:00:09]}  Kd7 {[%clk 0:01:10]} 38. Kd3 {[%clk 0:00:09]}  Bb4 {[%clk 0:01:09]} 39. Ke4 {[%clk 0:00:08]}  Kd6 {[%clk 0:01:07]} 40. g4 {[%clk 0:00:08]}  Bd2 {[%clk 0:01:04]} 41. Kd3 {[%clk 0:00:08]}  Bg5 {[%clk 0:01:01]} 42. Kc4 {[%clk 0:00:06]}  g6 {[%clk 0:00:59]} 43. Kb4 {[%clk 0:00:07]}  Bc1 {[%clk 0:00:57]} 44. Kc4 {[%clk 0:00:06]}  f5 {[%clk 0:00:55]} 45. Kd3 {[%clk 0:00:05]}  Kc5 {[%clk 0:00:54]} 46. Kc2 {[%clk 0:00:04]}  Bf4 {[%clk 0:00:54]} 47. h3 {[%clk 0:00:01]}  e4 {[%clk 0:00:54]} 48. fxe4 {[%clk 0:00:01]}  fxe4 {[%clk 0:00:55]} 49. Kc3 {[%clk 0:00:02]}  Be5+ {[%clk 0:00:53]} 50. Kc2 {[%clk 0:00:02]}  Kd4 {[%clk 0:00:53]} 51. Ba2 {[%clk 0:00:00]}  e3 {[%clk 0:00:52]} 0-1


[Site "https://www.chess.com"]

[Event "Titled Tuesday Blitz August 08 Late 2023"]
[White "brm72"]
[Black "Klukin, Kirill"]
[BlackFideId "24199273"]
[WhiteElo "2538"]
[BlackElo "2758"]
[Result "0-1"]
[Round "8"]
[TimeControl "180+1"]
[Date "2023.08.08"]
[WhiteClock "0:00:12"]
[BlackClock "0:00:14"]
[Board "36"]

1. e4 {[%clk 0:03:00]}  c5 {[%clk 0:02:59]} 2. Nf3 {[%clk 0:03:00]}  Nc6 {[%clk 0:02:59]} 3. Bb5 {[%clk 0:03:00]}  g6 {[%clk 0:02:59]} 4. Bxc6 {[%clk 0:03:00]}  bxc6 {[%clk 0:03:00]} 5. O-O {[%clk 0:03:00]}  Bg7 {[%clk 0:03:00]} 6. c3 {[%clk 0:03:01]}  Nh6 {[%clk 0:03:00]} 7. d4 {[%clk 0:03:00]}  cxd4 {[%clk 0:03:01]} 8. cxd4 {[%clk 0:03:01]}  O-O {[%clk 0:03:02]} 9. Nc3 {[%clk 0:03:00]}  f6 {[%clk 0:03:02]} 10. e5 {[%clk 0:02:47]}  fxe5 {[%clk 0:02:56]} 11. dxe5 {[%clk 0:02:43]}  Nf7 {[%clk 0:02:47]} 12. e6 {[%clk 0:02:38]}  dxe6 {[%clk 0:02:47]} 13. Qb3 {[%clk 0:02:30]}  Qb6 {[%clk 0:02:42]} 14. Qa3 {[%clk 0:02:25]}  e5 {[%clk 0:02:11]} 15. Be3 {[%clk 0:02:18]}  Qb7 {[%clk 0:02:06]} 16. Bc5 {[%clk 0:02:16]}  Bg4 {[%clk 0:02:03]} 17. Nd2 {[%clk 0:02:02]}  Rfe8 {[%clk 0:02:01]} 18. h3 {[%clk 0:01:59]}  Be6 {[%clk 0:02:01]} 19. Nde4 {[%clk 0:01:58]}  Bd5 {[%clk 0:02:01]} 20. Rfe1 {[%clk 0:01:53]}  Nd8 {[%clk 0:01:33]} 21. Rac1 {[%clk 0:01:22]}  Ne6 {[%clk 0:01:33]} 22. b3 {[%clk 0:01:18]}  Nd4 {[%clk 0:01:22]} 23. Na4 {[%clk 0:00:49]}  Qa6 {[%clk 0:01:00]} 24. Qb2 {[%clk 0:00:35]}  Rab8 {[%clk 0:00:56]} 25. Nac3 {[%clk 0:00:23]}  Qb7 {[%clk 0:00:54]} 26. Qd2 {[%clk 0:00:22]}  Rf8 {[%clk 0:00:52]} 27. Qe3 {[%clk 0:00:21]}  Nf5 {[%clk 0:00:43]} 28. Qg5 {[%clk 0:00:20]}  Bh6 {[%clk 0:00:42]} 29. Qg4 {[%clk 0:00:20]}  Bxc1 {[%clk 0:00:31]} 30. Rxc1 {[%clk 0:00:20]}  Rbd8 {[%clk 0:00:26]} 31. h4 {[%clk 0:00:20]}  Qd7 {[%clk 0:00:26]} 32. Re1 {[%clk 0:00:16]}  Nd4 {[%clk 0:00:24]} 33. Qg5 {[%clk 0:00:16]}  Qf5 {[%clk 0:00:13]} 34. Bxe7 {[%clk 0:00:15]}  Qxg5 {[%clk 0:00:05]} 35. hxg5 {[%clk 0:00:16]}  Kf7 {[%clk 0:00:04]} 36. Bxd8 {[%clk 0:00:13]}  Rxd8 {[%clk 0:00:04]} 37. Nf6 {[%clk 0:00:13]}  Ke6 {[%clk 0:00:04]} 38. Nxh7 {[%clk 0:00:12]}  Nc2 {[%clk 0:00:03]} 39. Re2 {[%clk 0:00:10]}  Nb4 {[%clk 0:00:04]} 40. Nf6 {[%clk 0:00:09]}  Kf5 {[%clk 0:00:04]} 41. f3 {[%clk 0:00:05]}  Kxg5 {[%clk 0:00:04]} 42. Nfxd5 {[%clk 0:00:06]}  cxd5 {[%clk 0:00:05]} 43. Rxe5+ {[%clk 0:00:05]}  Kf6 {[%clk 0:00:06]} 44. Re1 {[%clk 0:00:05]}  d4 {[%clk 0:00:06]} 45. Ne4+ {[%clk 0:00:06]}  Kg7 {[%clk 0:00:06]} 46. Rd1 {[%clk 0:00:06]}  Rd7 {[%clk 0:00:05]} 47. Kf2 {[%clk 0:00:06]}  Nxa2 {[%clk 0:00:06]} 48. Ra1 {[%clk 0:00:05]}  Nb4 {[%clk 0:00:06]} 49. Nc5 {[%clk 0:00:05]}  Re7 {[%clk 0:00:05]} 50. Re1 {[%clk 0:00:03]}  Rf7 {[%clk 0:00:02]} 51. Ne6+ {[%clk 0:00:03]}  Kf6 {[%clk 0:00:02]} 52. Re4 {[%clk 0:00:02]}  Nd3+ {[%clk 0:00:02]} 53. Ke2 {[%clk 0:00:02]}  Nc1+ {[%clk 0:00:02]} 54. Kd1 {[%clk 0:00:02]}  Nxb3 {[%clk 0:00:03]} 55. Nxd4 {[%clk 0:00:03]}  Rd7 {[%clk 0:00:04]} 56. Re6+ {[%clk 0:00:02]}  Kf7 {[%clk 0:00:04]} 57. Ra6 {[%clk 0:00:02]}  Nxd4 {[%clk 0:00:04]} 58. Ke1 {[%clk 0:00:02]}  Ne6 {[%clk 0:00:05]} 59. Kf2 {[%clk 0:00:03]}  Nc5 {[%clk 0:00:05]} 60. Rc6 {[%clk 0:00:02]}  Nd3+ {[%clk 0:00:05]} 61. Ke3 {[%clk 0:00:02]}  Ne5 {[%clk 0:00:06]} 62. Rc5 {[%clk 0:00:02]}  Ke6 {[%clk 0:00:06]} 63. Ra5 {[%clk 0:00:03]}  Nc6 {[%clk 0:00:06]} 64. Ra6 {[%clk 0:00:03]}  Kd6 {[%clk 0:00:07]} 65. Ke4 {[%clk 0:00:03]}  Kc5 {[%clk 0:00:07]} 66. g3 {[%clk 0:00:04]}  Kb5 {[%clk 0:00:08]} 67. Ra1 {[%clk 0:00:05]}  a5 {[%clk 0:00:08]} 68. f4 {[%clk 0:00:05]}  a4 {[%clk 0:00:09]} 69. g4 {[%clk 0:00:06]}  Re7+ {[%clk 0:00:09]} 70. Kd5 {[%clk 0:00:06]}  Nb4+ {[%clk 0:00:10]} 71. Kd6 {[%clk 0:00:05]}  Re4 {[%clk 0:00:10]} 72. f5 {[%clk 0:00:05]}  Rxg4 {[%clk 0:00:11]} 73. f6 {[%clk 0:00:05]}  Rf4 {[%clk 0:00:11]} 74. Ke7 {[%clk 0:00:06]}  Nd5+ {[%clk 0:00:11]} 75. Ke6 {[%clk 0:00:05]}  Nxf6 {[%clk 0:00:12]} 76. Ke5 {[%clk 0:00:06]}  Rf2 {[%clk 0:00:11]} 77. Rb1+ {[%clk 0:00:06]}  Ka5 {[%clk 0:00:11]} 78. Rb8 {[%clk 0:00:07]}  Nd7+ {[%clk 0:00:11]} 79. Kd6 {[%clk 0:00:08]}  Nxb8 {[%clk 0:00:12]} 80. Kc5 {[%clk 0:00:08]}  Na6+ {[%clk 0:00:12]} 81. Kd6 {[%clk 0:00:09]}  a3 {[%clk 0:00:12]} 82. Kc6 {[%clk 0:00:10]}  a2 {[%clk 0:00:13]} 83. Kb7 {[%clk 0:00:11]}  a1=Q {[%clk 0:00:14]} 84. Ka8 {[%clk 0:00:12]}  Qh8+ {[%clk 0:00:13]} 85. Ka7 {[%clk 0:00:12]}  Rf7# {[%clk 0:00:14]} 0-1


[Site "https://www.chess.com"]